fUST/lending_fUST_20241029
["ID","MTS","AMOUNT","RATE_DAILY","PERIOD"]
[340962698,1730164380256,1000.0,0.0002,2]
[340962699,1730164493540,10000.0,0.0002011,2]
[340962700,1730164513288,1750.0,0.0002011,2]
[340962701,1730164531676,392.378896,0.00035657,30]
[340962703,1730164819806,167.082881,0.00013973,2]
[340962705,1730165237138,-245.585478,0.00021271,2]
[340962706,1730165237160,-173.166614,0.0002128,2]
[340962707,1730165237182,-300.0,0.00021479,2]
[340962708,1730165237203,-300.0,0.00021479,2]
[340962709,1730165237227,-11641.84542312,0.0002148,2]
[340962710,1730165237262,-1047.58440459,0.0002148,2]
[340962711,1730165248138,-611.25738775,0.0002148,2]
[340962712,1730165253099,-1187.65306118,0.0002148,2]
[340962713,1730165301277,3548.98052954,0.000125,2]
[340962716,1730165345075,-245.0,0.00021171,2]
[340962717,1730165368108,-66.42279816,0.00021171,2]
[340962718,1730165368130,-300.0,0.00021479,2]
[340962719,1730165368152,-300.0,0.00021479,2]
[340962720,1730165368173,-10411.65972336,0.0002148,2]
[340962721,1730165368193,-150.25097901,0.000215,2]
[340962722,1730165368215,-500.0,0.000215,2]
[340962723,1730165368235,-500.0,0.000215,2]
[340962724,1730165368255,-500.0,0.000215,2]
[340962725,1730165368276,-500.0,0.000215,2]
[340962726,1730165368297,-222.348368,0.00021617,2]
[340962727,1730165368317,-182.0080852,0.00021743,2]
[340962728,1730165368338,-172.052215,0.00021918,2]
[340962729,1730165368359,-245.585478,0.00021956,2]
[340962730,1730165368380,-595.0,0.00022,2]
[340962731,1730165368401,-595.0,0.00022192,2]
[340962732,1730165368423,-162.252927,0.00022293,2]
[340962733,1730165368446,-162.252927,0.00022382,2]
[340962734,1730165368467,-162.252927,0.00022471,2]
[340962735,1730165368490,-162.252927,0.00022561,2]
[340962736,1730165368510,-245.585478,0.00022641,2]
[340962737,1730165368534,-35.07516727,0.0002265,2]
[340962740,1730165429890,2046.10569606,0.00035662,120]
[340962780,1730165432413,-1705.83198585,0.0002192,2]
[340962782,1730165432425,-6355.71188315,0.0002192,2]
[340962784,1730165432435,-225.8593394,0.00022562,2]
[340962786,1730165432445,-127.17775973,0.0002265,2]
[340962787,1730165432454,-162.252927,0.00022739,2]
[340962788,1730165432463,-162.252927,0.00022829,2]
[340962789,1730165432473,-300.0,0.00022869,2]
[340962790,1730165432485,-300.0,0.00022869,2]
[340962791,1730165432494,-162.252927,0.00022918,2]
[340962792,1730165432503,-162.252927,0.00023008,2]
[340962793,1730165432513,-595.0,0.00023014,2]
[340962794,1730165432522,-162.252927,0.00023097,2]
[340962795,1730165432534,-162.252927,0.00023186,2]
[340962796,1730165432543,-162.252927,0.00023276,2]
[340962797,1730165432554,-274.77954327,0.00023287,2]
[340962802,1730165438651,-225.22045673,0.00023287,2]
[340962803,1730165438663,-162.252927,0.00023365,2]
[340962804,1730165438672,-162.252927,0.00023454,2]
[340962805,1730165438681,-602.0,0.00024164,2]
[340962806,1730165438692,-7428.84570652,0.00024499,2]
[340962807,1730165438704,-1668.34348908,0.000245,2]
[340962808,1730165438938,-116.39826718,0.000245,2]
[340962840,1730165443468,-311.84784866,0.000245,2]
[340962841,1730165443480,-170.56029957,0.00024537,2]
[340962842,1730165443490,-170.56029957,0.00024542,2]
[340962843,1730165443499,-170.56029957,0.00024547,2]
[340962844,1730165443509,-170.56029957,0.00024552,2]
[340962845,1730165443518,-170.56029957,0.00024557,2]
[340962846,1730165443527,-110.49618639,0.00024632,7]
[340962865,1730165446489,-597.46481361,0.00024632,7]
[340962866,1730165446500,-302.65716934,0.00024636,2]
[340962867,1730165446509,-1139.70087989,0.00024637,3]
[340962870,1730165631538,150.0,0.00035661,120]
[340962878,1730165887871,167.082881,0.00013973,2]
[340962891,1730166330878,1038.995,0.0002011,2]
[340962892,1730166331133,-300.0,0.0002295,2]
[340962893,1730166331156,-24900.0,0.00022951,2]
[340962894,1730166331178,-3710.07704819,0.00023367,2]
[340962895,1730166331198,-165.570309,0.00023367,2]
[340962896,1730166331220,-158.351015,0.00023476,2]
[340962897,1730166331242,-801.18215641,0.00023498,2]
[340962924,1730166444091,-345.93539175,0.0002354,2]
[340962925,1730166450109,-223.88641065,0.0002354,2]
[340962926,1730166450134,-158.351015,0.00023598,2]
[340962927,1730166450158,-207.26591708,0.00023641,2]
[340962928,1730166453145,-355.44146062,0.00023641,2]
[340962929,1730166453168,-158.351015,0.0002372,2]
[340962930,1730166453193,-158.351015,0.00023843,2]
[340962931,1730166453216,-158.351015,0.00023965,2]
[340962932,1730166453238,-201.77144623,0.00023965,2]
[340962933,1730166453261,-158.351015,0.00024087,2]
[340962934,1730166453283,-261.4240702,0.00024197,2]
[340962990,1730166632731,-158.351015,0.00023757,2]
[340962992,1730166632741,-158.351015,0.00024067,2]
[340962994,1730166632751,-158.351015,0.00024376,2]
[340962996,1730166632762,-300.0,0.00024536,2]
[340962999,1730166632773,-1000.0,0.00024557,2]
[340963001,1730166632785,-1000.0,0.000246,2]
[340963003,1730166632797,-1000.0,0.000246,3]
[340963005,1730166632808,-210.8524058,0.00024603,2]
[340963006,1730166632819,-567.296,0.00024627,7]
[340963008,1730166632832,-357.28,0.00024627,3]
[340963009,1730166632843,-152.14509388,0.00024636,2]
[340963010,1730166632854,-278.64023862,0.00024636,2]
[340963011,1730166632866,-283.8775557,0.00024636,2]
[340963012,1730166632875,-300.0,0.00024636,2]
[340963013,1730166632885,-201.77144623,0.00024636,2]
[340963014,1730166632895,-186845.522918,0.00024637,3]
[340963015,1730166632905,-38256.35744075,0.00024637,3]
[340963016,1730166632918,-5989.933324,0.00024637,3]
[340963017,1730166632931,-1120.05886753,0.00024637,3]
[340963036,1730166639070,-3718.4029238,0.00024637,3]
[340963037,1730166639086,-1347.12249594,0.00024637,3]
[340963038,1730166639098,-1148.725005,0.00024637,3]
[340963039,1730166639112,-1069.66884816,0.00024637,3]
[340963040,1730166639125,-1886.64202605,0.00024637,3]
[340963052,1730166640686,-41180.39975977,0.00024637,3]
[340963053,1730166640696,-150.0,0.00024639,2]
[340963055,1730166640706,-22788.05898479,0.00024642,3]
[340963074,1730166654232,218.82443128,0.00022001,60]
[340963075,1730166654254,245.0,0.00022001,60]
[340963076,1730166654281,49659.77556872,0.00022001,60]
[340963116,1730166762207,236.0,0.0002011,2]
[340963182,1730166921037,168.620181,0.00013973,2]
[340963186,1730166945794,199.0,0.0002,10]
[340963229,1730167061284,6262.0,0.00035648,30]
[340963231,1730167087653,616.29,0.00035648,30]
[340963307,1730167556155,-169.0,0.00022,2]
[340963308,1730167556178,-173.166614,0.00022507,2]
[340963309,1730167556200,-1168.5614235,0.00022855,2]
[340963310,1730167556223,-300.0,0.00023048,2]
[340963311,1730167556245,-300.0,0.00023048,2]
[340963312,1730167556269,-2150.0626669,0.00023049,2]
[340963313,1730167613114,168.620181,0.00013973,2]
[340963314,1730167630112,-300.0,0.00023048,2]
[340963315,1730167630135,-300.0,0.00023048,2]
[340963316,1730167630310,-129.27669405,0.00023049,2]
[340963317,1730167641085,-188.32962012,0.00023049,2]
[340963318,1730167645120,-402.66231506,0.00023049,2]
[340963349,1730167832908,-300.0,0.00023048,2]
[340963350,1730167832919,-300.0,0.00023048,2]
[340963351,1730167832930,-6446.591,0.00023049,2]
[340963353,1730167832944,-15583.07770387,0.00023049,2]
[340963356,1730167832956,-163.340407,0.00023372,2]
[340963358,1730167832967,-600.00000001,0.00023605,2]
[340963359,1730167832979,-163.340407,0.00023676,2]
[340963361,1730167832990,-738.93017037,0.0002368,2]
[340963363,1730167833001,-150.0,0.00023852,2]
[340963364,1730167833012,-381.497,0.0002394,2]
[340963366,1730167833024,-163.340407,0.00023981,2]
[340963367,1730167833035,-501.54232331,0.00024141,2]
[340963368,1730167833046,-163.340407,0.00024285,2]
[340963369,1730167833058,-8902.26929295,0.00024527,2]
[340963370,1730167833070,-1000.0,0.00024557,2]
[340963371,1730167833082,-163.340407,0.0002459,2]
[340963372,1730167833094,-1000.0,0.000246,5]
[340963373,1730167833107,-672.45,0.00024617,3]
[340963374,1730167833118,-195.04816703,0.00024626,2]
[340963375,1730167833129,-226.4568234,0.00024626,2]
[340963376,1730167833140,-35648.28586686,0.00024627,3]
[340963377,1730167833153,-5861.80567229,0.00024627,3]
[340963389,1730167839031,-3994.96101596,0.00024627,3]
[340963397,1730167841029,-355.46651151,0.00024627,3]
[340963398,1730167841233,-20000.0,0.00024627,3]
[340963447,1730167844107,-32890.27839853,0.00024627,3]
[340963450,1730167846546,197.51126482,0.00022,2]
[340963451,1730167846568,152.48873518,0.00022,2]
[340963456,1730167846888,92.51126482,0.00022192,2]
[340963494,1730168176032,207.930623,0.00013973,2]
[340963495,1730168181423,1659.7097623,0.00035511,120]
[340963512,1730168343836,3000.0,0.00035511,120]
[340963542,1730168748180,170.071344,0.00013973,2]
[340963546,1730168839144,-295.0,0.00022,2]
[340963547,1730168839165,-160.0,0.00022,2]
[340963548,1730168839187,-156.0,0.00022,2]
[340963549,1730168839208,-295.0,0.00022192,2]
[340963550,1730168839236,-166.666667,0.00022442,2]
[340963551,1730168839257,-2000.0,0.00023,2]
[340963552,1730168839279,-295.0,0.00023014,2]
[340963553,1730168839302,-166.666667,0.00023026,2]
[340963554,1730168839324,-300.0,0.00023306,2]
[340963555,1730168839346,-300.0,0.00023306,2]
[340963556,1730168839368,-5000.0,0.00023307,2]
[340963557,1730168839389,-6462.71997305,0.00023308,2]
[340963558,1730168844124,-5440.10335355,0.00023308,2]
[340963559,1730168849113,-1366.81542446,0.00023308,2]
[340963564,1730168914575,348.28371966,0.00035511,30]
[340963569,1730168928304,444.05429097,0.00016,7]
[340963570,1730168928640,152.10795397,0.00035512,120]
[340963571,1730168934639,1500.24179123,0.00035512,37]
[340963572,1730168961184,-245.06185436,0.000219,2]
[340963606,1730169032041,-287.2312933,0.00023082,2]
[340963608,1730169032052,-300.0,0.0002321,2]
[340963610,1730169032065,-300.0,0.0002321,2]
[340963612,1730169032075,-24900.0,0.00023211,2]
[340963614,1730169032084,-4045.07959942,0.00023307,2]
[340963616,1730169032095,-7789.48563134,0.00023511,2]
[340963618,1730169032104,-153.0,0.000236,2]
[340963620,1730169032114,-166.666667,0.00023611,2]
[340963621,1730169032123,-153.0,0.00023741,2]
[340963622,1730169032133,-153.0,0.000238,2]
[340963623,1730169032142,-297.0,0.00024164,2]
[340963624,1730169032152,-151.4061407,0.00024164,2]
[340963625,1730169032162,-446.9601873,0.00024384,2]
[340963626,1730169032171,-408.0422384,0.00024493,2]
[340963627,1730169032180,-224.26337816,0.00024527,2]
[340963628,1730169032189,-1000.0,0.00024547,2]
[340963629,1730169032198,-150.9712156,0.00024547,2]
[340963630,1730169032207,-302.9,0.00024566,2]
[340963631,1730169032216,-159.595914,0.000246,2]
[340963632,1730169032226,-31131.88620679,0.00024627,3]
[340963633,1730169032238,-1206.74562781,0.00024627,3]
[340963634,1730169032247,-721.79264434,0.00024627,3]
[340963635,1730169032260,-453.837,0.00024627,7]
[340963636,1730169032270,-388.4626141,0.0002463,2]
[340963637,1730169032279,-4331.05211375,0.00024637,3]
[340963755,1730169044872,-92684.84339015,0.00024637,3]
[340963756,1730169044883,-2165.37793302,0.00024637,3]
[340963757,1730169044893,-201.503852,0.00024637,7]
[340963758,1730169044904,-153.807788,0.00024637,7]
[340963759,1730169044915,-532.722726,0.00024637,7]
[340963760,1730169044924,-532.722726,0.00024637,7]
[340963761,1730169044933,-151.0,0.00024637,7]
[340963762,1730169044943,-151.0,0.00024637,7]
[340963763,1730169044953,-151.0,0.00024637,7]
[340963764,1730169044963,-151.0,0.00024637,7]
[340963765,1730169044973,-151.0,0.00024637,7]
[340963766,1730169044982,-151.0,0.00024637,7]
[340963767,1730169044992,-151.0,0.00024637,7]
[340963768,1730169045002,-151.0,0.00024637,7]
[340963769,1730169045011,-151.0,0.00024637,7]
[340963770,1730169045021,-150.01,0.00024638,2]
[340963771,1730169045031,-191.27441174,0.00024646,2]
[340963772,1730169045041,-90582.09737286,0.00024647,3]
[340963773,1730169045056,-38772.42996614,0.00024647,3]
[340963774,1730169045065,-5052.54851038,0.00024647,3]
[340963775,1730169045074,-151.986856,0.00024647,7]
[340963776,1730169045084,-151.0,0.00024647,7]
[340963777,1730169045094,-151.0,0.00024647,7]
[340963778,1730169045112,-276.204209,0.00024647,7]
[340963779,1730169045122,-276.204209,0.00024647,7]
[340963780,1730169045132,-151.0,0.00024647,7]
[340963781,1730169045142,-151.0,0.00024647,7]
[340963782,1730169045152,-151.0,0.00024647,7]
[340963783,1730169045162,-532.722726,0.00024647,7]
[340963784,1730169045172,-532.722726,0.00024647,7]
[340963785,1730169045182,-532.722726,0.00024647,7]
[340963786,1730169045193,-532.722726,0.00024647,7]
[340963787,1730169045203,-151.0,0.00024647,7]
[340963788,1730169045213,-151.0,0.00024647,7]
[340963789,1730169045222,-151.0,0.00024647,7]
[340963790,1730169045233,-151.0,0.00024647,7]
[340963791,1730169045243,-151.0,0.00024647,7]
[340963792,1730169045253,-151.0,0.00024647,7]
[340963793,1730169045263,-151.0,0.00024647,7]
[340963794,1730169045274,-290.118073,0.00024647,7]
[340963795,1730169045284,-193.617013,0.00024647,7]
[340963796,1730169045293,-151.0,0.00024647,7]
[340963797,1730169045312,-151.0,0.00024647,7]
[340963798,1730169045325,-151.0,0.00024647,7]
[340963799,1730169045335,-151.0,0.00024647,7]
[340963800,1730169045346,-151.0,0.00024647,7]
[340963801,1730169045356,-155.572753,0.00024647,7]
[340963802,1730169045367,-152.233632,0.00024647,7]
[340963803,1730169045378,-151.0,0.00024647,7]
[340963805,1730169045388,-151.0,0.00024647,7]
[340963807,1730169045398,-151.0,0.00024647,7]
[340963808,1730169045408,-335.428718,0.00024647,7]
[340963809,1730169045419,-335.428718,0.00024647,7]
[340963810,1730169045440,-227.877779,0.00024647,7]
[340963811,1730169045459,-227.877779,0.00024647,7]
[340963812,1730169045475,-151.0,0.00024647,7]
[340963813,1730169045490,-151.0,0.00024647,7]
[340963814,1730169045503,-151.610831,0.00024647,7]
[340963816,1730169045520,-151.0,0.00024647,7]
[340963817,1730169045534,-500.0,0.00024657,4]
[340963818,1730169045549,-500.0,0.00024657,4]
[340963819,1730169045564,-500.0,0.00024657,4]
[340963820,1730169045578,-512.77195103,0.00024657,4]
[340963821,1730169045592,-500.0,0.00024657,4]
[340963822,1730169045612,-500.0,0.00024657,4]
[340963823,1730169045628,-500.0,0.00024657,4]
[340963824,1730169045643,-510.66590518,0.00024657,4]
[340963826,1730169045657,-500.0,0.00024657,4]
[340963827,1730169045672,-500.0,0.00024657,4]
[340963828,1730169045688,-500.0,0.00024657,4]
[340963829,1730169045703,-500.0,0.00024657,4]
[340963831,1730169045717,-500.0,0.00024657,4]
[340963832,1730169045730,-504.52070423,0.00024657,4]
[340963833,1730169045740,-503.12441482,0.00024657,4]
[340963835,1730169045753,-504.78549806,0.00024657,4]
[340963836,1730169045765,-509.00353927,0.00024657,4]
[340963837,1730169045779,-500.0,0.00024657,4]
[340963839,1730169045793,-506.85205939,0.00024657,4]
[340963841,1730169045807,-502.38832159,0.00024657,4]
[340963843,1730169045819,-152.868202,0.00024657,7]
[340963844,1730169045834,-518.79815465,0.00024657,4]
[340963845,1730169045850,-502.44180342,0.00024657,4]
[340963846,1730169045865,-500.0,0.00024657,4]
[340963847,1730169045878,-500.0,0.00024657,4]
[340963848,1730169045889,-500.0,0.00024657,4]
[340963849,1730169045901,-500.0,0.00024657,4]
[340963850,1730169045914,-650.08,0.00024657,4]
[340963851,1730169045928,-500.0,0.00024657,4]
[340963854,1730169045942,-500.0,0.00024657,4]
[340963856,1730169045957,-500.0,0.00024657,4]
[340963858,1730169045968,-568.01302933,0.00024657,4]
[340963859,1730169045981,-507.05933406,0.00024657,4]
[340963860,1730169045995,-500.0,0.00024657,4]
[340963861,1730169046007,-507.54045314,0.00024657,4]
[340963862,1730169046023,-500.0,0.00024657,4]
[340963863,1730169046034,-500.0,0.00024657,4]
[340963864,1730169046045,-500.0,0.00024657,4]
[340963865,1730169046059,-505.71742505,0.00024657,4]
[340963866,1730169046071,-504.3532632,0.00024657,4]
[340963867,1730169046082,-500.0,0.00024657,4]
[340963868,1730169046097,-500.0,0.00024657,4]
[340963869,1730169046110,-500.0,0.00024657,4]
[340963870,1730169046122,-500.0,0.00024657,4]
[340963871,1730169046134,-503.82559365,0.00024657,4]
[340963872,1730169046147,-500.0,0.00024657,4]
[340963873,1730169046158,-500.0,0.00024657,4]
[340963874,1730169046170,-500.0,0.00024657,4]
[340963875,1730169046181,-509.34781106,0.00024657,4]
[340963876,1730169046192,-500.0,0.00024657,4]
[340963877,1730169046204,-514.63457875,0.00024657,4]
[340963878,1730169046215,-500.0,0.00024657,4]
[340963879,1730169046226,-500.0,0.00024657,4]
[340963880,1730169046238,-498.31464122,0.00024657,4]
[340963881,1730169046249,-503.93493787,0.00024657,4]
[340963882,1730169046260,-500.0,0.00024657,4]
[340963883,1730169046272,-511.75909201,0.00024657,4]
[340963884,1730169046284,-502.95534416,0.00024657,4]
[340963885,1730169046295,-503.6738448,0.00024657,4]
[340963886,1730169046306,-500.0,0.00024657,4]
[340963887,1730169046323,-503.90279855,0.00024657,4]
[340963888,1730169046335,-504.30492059,0.00024657,4]
[340963889,1730169046350,-501.67909386,0.00024657,4]
[340963890,1730169046363,-513.49708311,0.00024657,4]
[340963891,1730169046375,-597.51676405,0.00024657,4]
[340963892,1730169046387,-500.0,0.00024657,4]
[340963893,1730169046400,-506.66787415,0.00024657,4]
[340963894,1730169046411,-500.0,0.00024657,4]
[340963895,1730169046423,-507.09671671,0.00024657,4]
[340963897,1730169046435,-444.1446168,0.00024657,4]
[340963899,1730169046447,-360.85428344,0.00024657,4]
[340963902,1730169046459,-500.0,0.00024657,4]
[340963903,1730169046470,-500.0,0.00024657,4]
[340963904,1730169046481,-503.82290893,0.00024657,4]
[340963905,1730169046493,-500.0,0.00024657,4]
[340963906,1730169046504,-500.0,0.00024657,4]
[340963907,1730169046515,-509.29501686,0.00024657,4]
[340963908,1730169046527,-500.0,0.00024657,4]
[340963909,1730169046538,-500.0,0.00024657,4]
[340963910,1730169046550,-581.96827256,0.00024657,4]
[340963911,1730169046562,-500.0,0.00024657,4]
[340963912,1730169046573,-500.0,0.00024657,4]
[340963913,1730169046585,-502.01041015,0.00024657,4]
[340963914,1730169046596,-500.0,0.00024657,4]
[340963915,1730169046608,-267.36478049,0.00024657,4]
[340963916,1730169046620,-504.49000455,0.00024657,4]
[340963917,1730169046632,-200.0,0.00024657,4]
[340963918,1730169046643,-500.0,0.00024657,4]
[340963919,1730169046654,-500.0,0.00024657,4]
[340963920,1730169046666,-507.40104037,0.00024657,4]
[340963921,1730169046678,-500.0,0.00024657,4]
[340963922,1730169046690,-500.0,0.00024657,4]
[340963923,1730169046702,-500.0,0.00024657,4]
[340963924,1730169046714,-500.0,0.00024657,4]
[340963925,1730169046723,-500.0,0.00024657,4]
[340963926,1730169046733,-500.0,0.00024657,4]
[340963927,1730169046742,-569.53703096,0.00024657,4]
[340963928,1730169046751,-500.0,0.00024657,4]
[340963929,1730169046997,-505.89377253,0.00024657,4]
[340963930,1730169047010,-500.0,0.00024657,4]
[340963931,1730169047020,-505.4382931,0.00024657,4]
[340963932,1730169047029,-500.0,0.00024657,4]
[340963933,1730169047038,-500.0,0.00024657,4]
[340963934,1730169047048,-500.0,0.00024657,4]
[340963935,1730169047061,-500.0,0.00024657,4]
[340963936,1730169047071,-500.0,0.00024657,4]
[340963937,1730169047080,-500.0,0.00024657,4]
[340963938,1730169047090,-500.0,0.00024657,4]
[340963939,1730169047101,-500.0,0.00024657,4]
[340963940,1730169047114,-504.93033232,0.00024657,4]
[340963941,1730169047123,-505.3630883,0.00024657,4]
[340963942,1730169047133,-333.36866657,0.00024657,4]
[340963943,1730169047142,-500.0,0.00024657,4]
[340963944,1730169047152,-506.72943619,0.00024657,4]
[340963945,1730169047161,-500.0,0.00024657,4]
[340963946,1730169047172,-500.0,0.00024657,4]
[340963947,1730169047182,-151.0,0.00024657,7]
[340963948,1730169047192,-151.0,0.00024657,7]
[340963949,1730169047201,-500.0,0.00024657,4]
[340963950,1730169047211,-151.0,0.00024657,7]
[340963951,1730169047220,-227.801504,0.00024657,7]
[340963952,1730169047230,-502.98431322,0.00024657,4]
[340963953,1730169047239,-500.0,0.00024657,4]
[340963954,1730169047249,-500.0,0.00024657,4]
[340963955,1730169047258,-500.0,0.00024657,4]
[340963956,1730169047268,-509.12937042,0.00024657,4]
[340963957,1730169047277,-151.0,0.00024657,7]
[340963958,1730169047287,-151.0,0.00024657,7]
[340963959,1730169047296,-151.0,0.00024657,7]
[340963960,1730169047305,-151.0,0.00024657,7]
[340963961,1730169047314,-634.45466679,0.00024657,4]
[340963962,1730169047324,-151.0,0.00024657,7]
[340963963,1730169047333,-290.627201,0.00024657,7]
[340963964,1730169047343,-500.0,0.00024657,4]
[340963965,1730169047356,-500.0,0.00024657,4]
[340963966,1730169047366,-517.65341921,0.00024657,4]
[340963967,1730169047375,-500.0,0.00024657,4]
[340963968,1730169047384,-500.0,0.00024657,4]
[340963969,1730169047394,-200.12546074,0.00024657,4]
[340963970,1730169047403,-500.0,0.00024657,4]
[340963971,1730169047413,-500.0,0.00024657,4]
[340963972,1730169047422,-500.0,0.00024657,4]
[340963973,1730169047432,-500.0,0.00024657,4]
[340963974,1730169047441,-500.0,0.00024657,4]
[340963975,1730169047452,-500.0,0.00024657,4]
[340963976,1730169047462,-500.0,0.00024657,4]
[340963977,1730169047471,-517.24526909,0.00024657,4]
[340963978,1730169047480,-500.0,0.00024657,4]
[340963979,1730169047490,-500.0,0.00024657,4]
[340963980,1730169047499,-500.0,0.00024657,4]
[340963981,1730169047509,-500.0,0.00024657,4]
[340963982,1730169047519,-500.0,0.00024657,4]
[340963983,1730169047528,-500.0,0.00024657,4]
[340963984,1730169047537,-500.0,0.00024657,4]
[340963985,1730169047547,-500.0,0.00024657,4]
[340963986,1730169047556,-506.77251478,0.00024657,4]
[340963987,1730169047565,-559.6928323,0.00024657,4]
[340963988,1730169047575,-500.0,0.00024657,4]
[340963989,1730169047584,-453.32364172,0.00024657,4]
[340963990,1730169047594,-500.0,0.00024657,4]
[340963991,1730169047605,-500.0,0.00024657,4]
[340963992,1730169047615,-419.44870416,0.00024657,4]
[340963993,1730169047624,-500.0,0.00024657,4]
[340963994,1730169047633,-500.0,0.00024657,4]
[340963995,1730169047643,-500.0,0.00024657,4]
[340963996,1730169047653,-500.0,0.00024657,4]
[340963997,1730169047664,-500.0,0.00024657,4]
[340963998,1730169047674,-500.0,0.00024657,4]
[340963999,1730169047683,-500.0,0.00024657,4]
[340964000,1730169047692,-514.92010737,0.00024657,4]
[340964001,1730169047702,-500.0,0.00024657,4]
[340964002,1730169047711,-503.6535082,0.00024657,4]
[340964003,1730169047721,-500.0,0.00024657,4]
[340964004,1730169047731,-500.0,0.00024657,4]
[340964005,1730169047741,-500.0,0.00024657,4]
[340964006,1730169047751,-500.70488753,0.00024657,4]
[340964007,1730169047760,-500.0,0.00024657,4]
[340964008,1730169047770,-564.72944146,0.00024657,4]
[340964009,1730169047780,-500.0,0.00024657,4]
[340964010,1730169047790,-500.0,0.00024657,4]
[340964011,1730169047800,-500.0,0.00024657,4]
[340964012,1730169047810,-500.0,0.00024657,4]
[340964013,1730169047819,-504.23406012,0.00024657,4]
[340964014,1730169047829,-500.0,0.00024657,4]
[340964015,1730169047839,-500.0,0.00024657,4]
[340964016,1730169047850,-500.0,0.00024657,4]
[340964017,1730169047860,-500.0,0.00024657,4]
[340964018,1730169047869,-500.0,0.00024657,4]
[340964019,1730169047880,-500.0,0.00024657,4]
[340964020,1730169047889,-500.0,0.00024657,4]
[340964021,1730169047899,-548.79298828,0.00024657,4]
[340964022,1730169047909,-500.0,0.00024657,4]
[340964023,1730169047918,-500.0,0.00024657,4]
[340964024,1730169047928,-500.0,0.00024657,4]
[340964025,1730169047937,-500.0,0.00024657,4]
[340964026,1730169047946,-500.0,0.00024657,4]
[340964027,1730169047956,-500.0,0.00024657,4]
[340964028,1730169047966,-276.204209,0.00024657,7]
[340964029,1730169047975,-276.204209,0.00024657,7]
[340964030,1730169047985,-500.0,0.00024657,4]
[340964031,1730169047994,-276.204209,0.00024657,7]
[340964032,1730169048004,-276.204209,0.00024657,7]
[340964033,1730169048013,-276.204209,0.00024657,7]
[340964034,1730169048023,-276.204209,0.00024657,7]
[340964035,1730169048032,-276.204209,0.00024657,7]
[340964036,1730169048042,-276.204209,0.00024657,7]
[340964037,1730169048053,-276.204209,0.00024657,7]
[340964038,1730169048064,-276.204209,0.00024657,7]
[340964039,1730169048074,-276.204209,0.00024657,7]
[340964040,1730169048084,-503.46507909,0.00024657,4]
[340964041,1730169048093,-276.204209,0.00024657,7]
[340964042,1730169048105,-276.204209,0.00024657,7]
[340964043,1730169048114,-276.204209,0.00024657,7]
[340964044,1730169048124,-500.0,0.00024657,4]
[340964045,1730169048133,-500.0,0.00024657,4]
[340964046,1730169048143,-276.204209,0.00024657,7]
[340964047,1730169048153,-276.204209,0.00024657,7]
[340964048,1730169048163,-276.204209,0.00024657,7]
[340964049,1730169048172,-276.20420279,0.00024657,7]
[340964050,1730169048182,-500.0,0.00024657,4]
[340964051,1730169048191,-503.30700714,0.00024657,4]
[340964052,1730169048201,-500.0,0.00024657,4]
[340964053,1730169048210,-500.0,0.00024657,4]
[340964054,1730169048220,-151.32196,0.00024657,7]
[340964055,1730169048229,-500.0,0.00024657,4]
[340964056,1730169048239,-500.0,0.00024657,4]
[340964057,1730169048248,-500.0,0.00024657,4]
[340964058,1730169048258,-500.0,0.00024657,4]